Cogmind - Beta 14 @@@ ROGUE MODE // 2025.01.13 @ 23:25:33 Player: muesli Result: Destroyed by H-61 Shepherd with Heavy Assault Cannon Performance ------------- Evolutions (2) 1000 Regions Visited (4) 800 Robots Destroyed (31) 155 Value Destroyed (1018) 1018 Prototype IDs (1) 20 Alien Tech Used (0) 0 Bonus (70) 70 TOTAL SCORE: 3063 Bonus ------- Follower Combat Kills 70 Cogmind --------- Core Integrity 0/550 Matter 207/300 Energy 41/100 System Corruption 0% Temperature Cool (0) Movement Core (50) Location -8/Materials Parts ------- > --- POWER (1) -------- (None) > --- PROPULSION (3) --- (None) > --- UTILITY (5) ------ (None) > --- WEAPON (2) ------- (None) > --- INVENTORY (5) ---- Improved EM Pulse Cannon Improved EM Pulse Cannon Flak Gun Peak State ------------ > --- POWER ------------ Light Nuclear Core > --- PROPULSION ------- Aluminum Leg > --- UTILITY ---------- Visual Processing Unit Signal Interpreter Targeting Computer Component Analysis Suite > --- WEAPON ----------- Flak Gun Flak Gun > --- INVENTORY -------- (None) [Rating: 20] Favorites ----------- Power Ion Engine Engine Ion Engine Power Core Light Nuclear Core Propulsion Aluminum Leg Leg Aluminum Leg Utility Sensor Array Device Sensor Array Storage Small Storage Unit Processor Visual Processing Unit Protection Weapon Shielding Weapon Assault Rifle Energy Gun EM Pulse Gun Energy Cannon Improved EM Pulse Cannon Ballistic Gun Assault Rifle Ballistic Cannon Light Cannon Special Melee Weapon Datajack Build | -11 -10 -9 -9 -8 ------- Run | Yrd Mat Mat Min Mat Slots Evolved 4 | . . 2 . 2 Power . | . . . . . Propulsion 1 | . . . . 1 Utility 3 | . . 2 . 1 Weapon . | . . . . . Parts Attached 49 | 7 12 15 1 14 Power 8 | 2 1 2 . 3 Engine 6 | 2 . 2 . 2 Core 2 | . 1 . . 1 Reactor . | . . . . . Propulsion 18 | 2 6 6 1 3 Treads . | . . . . . Leg 18 | 2 6 6 1 3 Wheel . | . . . . . Hover . | . . . . . Flight . | . . . . . Utility 11 | 1 3 4 . 3 Device 4 | . 2 1 . 1 Storage 1 | 1 . . . . Processor 5 | . . 3 . 2 Hackware . | . . . . . Protection 1 | . 1 . . . Artifact . | . . . . . Weapon 12 | 2 2 3 . 5 Energy Gun 1 | 1 . . . . Energy Cannon 2 | . . . . 2 Ballistic Gun 7 | 1 1 2 . 3 Ballistic Cannon 1 | . . 1 . . Launcher . | . . . . . Special Weapon . | . . . . . Impact Weapon . | . . . . . Slashing Weapon . | . . . . . Piercing Weapon . | . . . . . Special Melee Weapon 1 | . 1 . . . Unidentified Prototypes 1 | . . 1 . . Parts Lost 28 | . 7 7 . 14 Power 6 | . 2 1 . 3 Propulsion 7 | . 1 1 . 5 Utility 6 | . 1 2 . 3 Weapon 9 | . 3 3 . 3 Highest Loss Streak 8 | . 3 4 . 8 To Critical Strikes . | . . . . . Average Slot Usage (%) 69 | . 87 60 44 48 Engine 9 | . 11 9 11 5 Core 1 | . 1 . . 1 Leg 22 | . 27 21 22 11 Device 8 | . 13 7 . 2 Storage 2 | . 6 . . . Processor 5 | . . 5 11 22 Protection 1 | . 3 . . . Ballistic Gun 10 | . 13 10 . 4 Ballistic Cannon 2 | . . 6 . . Special Melee Weapon 2 | . 5 1 . . Peak Build Rating 20 | 6 9 15 5 20 Average Rating 7 | 4 6 8 5 10 On Entrance 4 | . 6 4 5 5 Naked Turns 2 | . . . . 2 Heaviest Build 14 | 14 14 14 5 14 Greatest Support 20 | 20 20 20 20 20 Greatest Overweight (x) 4 | 3 3 2 . 4 Average Overweight (x) . | . . . . . Largest Inventory Capacity 8 | 8 8 5 5 5 Average Capacity 5 | 7 6 5 5 5 Most Carried 5 | 2 5 5 3 4 Average Carried 3 | 1 3 3 3 2 Final Capacity 8 | 8 5 5 5 5 Final Carried 3 | 2 2 3 3 3 Class Distribution -------------------- 76% | Mutant 23% | Scavenger-Mutant Dominant Class ---------------- Mutant | -10/Materials Scavenger-Mutant | -9/Materials Mutant | -9/Mines Mutant | -8/Materials Resources | -11 -10 -9 -9 -8 ----------- Run | Yrd Mat Mat Min Mat Matter Collected 1077 | 155 314 465 . 143 Remotely . | . . . . . Salvage Created 1060 | . 390 505 . 165 Parts 66 | . 28 31 . 7 Haulers Intercepted . | . . . . . Recyclers Shooed 2 | . 2 . . . Parts Field Recycled . | . . . . . Retrieved Matter . | . . . . . Parts Self-Destructed . | . . . . . Prevented . | . . . . . Kills | -11 -10 -9 -9 -8 ------- Run | Yrd Mat Mat Min Mat Combat Hostiles Destroyed 27 | . 11 13 . 3 Guns 21 | . 11 7 . 3 Cannons 6 | . . 6 . . Classes Destroyed 9 | . 4 3 . 2 Builder 1 | . . 1 . . Recycler 1 | . 1 . . . Watcher 2 | . 1 . . 1 Swarmer 6 | . 6 . . . Grunt 14 | . 5 8 . 1 Brawler 1 | . . 1 . . Sentry 4 | . . 4 . . Specialist 1 | . . . . 1 Hunter 1 | . . . . 1 Best Kill Streak 4 | . 4 4 . 2 Combat Bots Only 4 | . 3 4 . 2 Max Kills in Single Turn 1 | . 1 1 . 1 Gunslinging . | . . . . . Exploded . | . . . . . Melee . | . . . . . Uniques/NPCs Destroyed . | . . . . . Combat | -11 -10 -9 -9 -8 -------- Run | Yrd Mat Mat Min Mat Hostile Shots Fired 299 | . 84 98 . 117 Missed 87 | . 21 30 . 36 Damage Taken 3286 | . 827 930 . 1529 Core 968 | . 130 258 . 580 Absorbed by Shields . | . . . . . Redirected to Shielding 54 | . 54 . . . Core Remaining (%) 61 | 100 48 . 35 . Volleys Fired 153 | . 58 78 . 17 Largest 2 | . 1 2 . 2 Hottest 69 | . 20 58 . 69 Shots Fired 175 | . 58 87 . 30 Gun 123 | . 58 36 . 29 Cannon 52 | . . 51 . 1 Launcher . | . . . . . Special . | . . . . . Kinetic 174 | . 58 87 . 29 Thermal . | . . . . . Explosive . | . . . . . Electromagnetic 1 | . . . . 1 Robot Hit Streak 18 | . 10 18 . 10 Robot Miss Streak 7 | . 2 5 . 7 Penetration Max . | . . . . . Secondary Targets . | . . . . . Shots Hit Robots 138 | . 48 62 . 28 Core Hits 77 | . 20 22 . 35 Critical Kills . | . . . . . Critical Parts Destroyed . | . . . . . Critical Strikes 1 | . . 1 . . Blast 1 | . . 1 . . Melee Attacks 6 | . 6 . . . Impact . | . . . . . Slashing . | . . . . . Piercing . | . . . . . Sneak Attacks 5 | . 5 . . . Combat Hostiles . | . . . . . Follow-up Attacks . | . . . . . Damage Inflicted 2129 | . 543 1008 1 577 Guns 1493 | . 532 445 . 516 Cannons 578 | . . 554 . 24 Explosions . | . . . . . Melee . | . . . . . Ramming 58 | . 11 9 1 37 Kinetic 2047 | . 532 999 . 516 Thermal . | . . . . . Explosive . | . . . . . Electromagnetic 24 | . . . . 24 Impact . | . . . . . Slashing . | . . . . . Piercing . | . . . . . Highest Corruption 1 | . . 1 1 . Average Corruption 1 | . . 1 1 . Corruption Purged . | . . . . . Corruption Blocked . | . . . . . Effects 5 | . . 5 . . Message Errors 2 | . . 2 . . Matter Fused 1 | . . 1 . . Heat Flow Errors 1 | . . 1 . . Data Loss (minor) 1 | . . 1 . . Overload Shots . | . . . . . Overflow Damage 33 | . 33 . . . Projectiles . | . . . . . Explosions 33 | . 33 . . . Melee . | . . . . . Knockbacks 6 | . . 6 . . Impact . | . . . . . Kinetic 6 | . . 6 . . Secondary . | . . . . . Self-Inflicted Damage 166 | . 151 . . 15 Shots 2 | . 2 . . . Rammed 9 | . . . . 9 Targets Rammed 21 | . 2 3 1 15 Kicked 12 | . 2 3 1 6 Crushed . | . . . . . Highest Temperature 132 | . 5 132 . 6 Average Temperature 16 | . 3 17 . 4 Received Heat Transfer 849 | . 255 450 . 144 Siege Activations . | . . . . . Robots Corrupted . | . . . . . Combat Hostiles . | . . . . . Parts Fried . | . . . . . Impact Corruptions . | . . . . . Robots Melted . | . . . . . Combat Hostiles . | . . . . . Parts Melted . | . . . . . Heat Transferred . | . . . . . Parts Sabotaged . | . . . . . Parts Stolen . | . . . . . Parts Stripped . | . . . . . Power Chain Reactions . | . . . . . Alert | -11 -10 -9 -9 -8 ------- Run | Yrd Mat Mat Min Mat Peak Influence 290 | . 210 290 36 186 Initial 59 | . . 59 36 13 Average 97 | . 65 152 36 77 Maximum Alert Level 1 | . 1 1 . . Low Security (%) 88 | 100 89 79 100 100 Level 1 11 | . 10 20 . . Level 2 . | . . . . . Level 3 . | . . . . . Level 4 . | . . . . . Level 5 . | . . . . . High Security . | . . . . . Max Security . | . . . . . Squads Dispatched 8 | . 1 3 1 3 Investigation 2 | . . 1 . 1 Extermination . | . . . . . Reinforcement 5 | . 1 2 . 2 Assault 1 | . . . 1 . Garrison . | . . . . . Intercept . | . . . . . Searches Triggered . | . . . . . Construction Impeded 1 | . . 1 . . Haulers Reinforced . | . . . . . Active Scanning Responses . | . . . . . Cargo Convoy Interrupts . | . . . . . Stealth | -11 -10 -9 -9 -8 --------- Run | Yrd Mat Mat Min Mat Distress Signals 2 | . . . . 2 Communications Jammed . | . . . . . Distress Signals . | . . . . . Times Spotted 56 | . 22 18 . 16 Peak Tracking Total 7 | . 4 4 . 7 Tactical Retreats 5 | . . 2 . 3 Traps | -11 -10 -9 -9 -8 ------- Run | Yrd Mat Mat Min Mat Traps Triggered 1 | . . 1 . . Indirectly . | . . . . . Trap Hack Attempts . | . . . . . Triggered . | . . . . . Disarmed . | . . . . . Reprogrammed . | . . . . . Reused . | . . . . . Traps Extracted . | . . . . . Installed . | . . . . . Triggered . | . . . . . Machines | -11 -10 -9 -9 -8 ---------- Run | Yrd Mat Mat Min Mat Machines Disabled 5 | . 3 2 . . Max in Single Turn 3 | . 3 1 . . Machines Repaired . | . . . . . Machines Dismantled . | . . . . . Machines Sabotaged . | . . . . . Overloaded Fab Kills . | . . . . . Hacking | -11 -10 -9 -9 -8 --------- Run | Yrd Mat Mat Min Mat Machines Accessed 4 | . 1 1 . 2 Terminals 4 | . 1 1 . 2 Fabricators . | . . . . . Repair Stations . | . . . . . Recycling Units . | . . . . . Scanalyzers . | . . . . . Garrison Access . | . . . . . Total Hacks 13 | . 3 3 . 7 Successful 4 | . . . . 4 Failed 9 | . 3 3 . 3 Catastrophic 1 | . 1 . . . Database Lockouts . | . . . . . Manual 8 | . 3 3 . 2 Terminals 13 | . 3 3 . 7 Fabricators . | . . . . . Repair Stations . | . . . . . Recycling Units . | . . . . . Scanalyzers . | . . . . . Garrison Access . | . . . . . Terminal Hacks 4 | . . . . 4 Record 3 | . . . . 3 Transport Status 1 | . . . . 1 Fabricator Hacks . | . . . . . Repair Station Hacks . | . . . . . Recycling Unit Hacks . | . . . . . Scanalyzer . | . . . . . Garrison Access Hacks . | . . . . . Unauthorized Hacks . | . . . . . Terminals . | . . . . . Fabricators . | . . . . . Repair Stations . | . . . . . Recycling Units . | . . . . . Scanalyzers . | . . . . . Garrison Access . | . . . . . Data Cores Recovered . | . . . . . Used . | . . . . . Hacking Detections 3 | . 1 1 . 1 Full Trace Events 3 | . 1 1 . 1 Feedback Events . | . . . . . Feedback Blocked . | . . . . . Robot Schematics Acquired . | . . . . . Robots Built . | . . . . . Authchips . | . . . . . Time . | . . . . . Total Robot Build Rating . | . . . . . Part Schematics Acquired . | . . . . . Parts Built . | . . . . . Authchips . | . . . . . Time . | . . . . . Total Part Build Rating . | . . . . . Parts Repaired . | . . . . . Time . | . . . . . Parts Recycled . | . . . . . Recycled Matter . | . . . . . Retrieved Matter . | . . . . . Retrieved Components . | . . . . . Parts Scanalyzed . | . . . . . Part Schematics Acquired . | . . . . . Parts Damaged . | . . . . . Bothacking | -11 -10 -9 -9 -8 ------------ Run | Yrd Mat Mat Min Mat Used RIF Installer . | . . . . . Robots Hacked 3 | . 3 . . . Non-combat 2 | . 2 . . . Combat 1 | . 1 . . . Robot Hacks Applied 4 | . 4 . . . parse_system 3 | . 3 . . . no_distress 1 | . 1 . . . Relay Couplers Released . | . . . . . Fabnet Peak Effective % . | . . . . . Robots Rewired . | . . . . . Allies Hacked . | . . . . . Hacks Repelled . | . . . . . Allies | -11 -10 -9 -9 -8 -------- Run | Yrd Mat Mat Min Mat Total Allies 1 | . . . 1 . Largest Group 1 | . . . 1 1 Highest-Rated Group 31 | . . . 31 31 Highest-Rated Ally 31 | . . . 31 31 Total Orders . | . . . . . Ally Attacks 14 | . . . . 14 Total Damage 211 | . . . . 211 Kills 2 | . . . . 2 Allies Corrupted . | . . . . . Allies Melted . | . . . . . Intel | -11 -10 -9 -9 -8 ------- Run | Yrd Mat Mat Min Mat Robot Analysis Total . | . . . . . Derelict Logs Recovered . | . . . . . Drone Launches . | . . . . . Drone Recoveries . | . . . . . Exploration | -11 -10 -9 -9 -8 ------------- Run | Yrd Mat Mat Min Mat Turns Passed 2562 | 83 1058 948 52 421 Spaces Moved 1596 | 60 680 550 42 264 Core 96 | 9 45 9 . 33 Treads . | . . . . . Legs 1500 | 51 635 541 42 231 Wheels . | . . . . . Hover . | . . . . . Flight . | . . . . . Fastest Speed 50 | 50 120 50 120 50 Average Speed 123 | 121 125 120 120 124 Slowest Speed 250 | 200 200 150 120 250 Overloaded Moves . | . . . . . Propulsion Burnouts . | . . . . . Robots Hopped . | . . . . . Cave-ins Triggered . | . . . . . Exploration Rate (%) 24 | 3 65 29 9 18 Regions Visited 4 Branch Regions 1 Pre-discovered Areas . | . . . . . Known Exits Taken . | . . . . . Unknown Exits Taken 4 | 1 1 1 1 . Scrap Searched . | . . . . . Spaces Dug . | . . . . . Terrain Destroyed 75 | . 75 . . . Melee . | . . . . . Projectile . | . . . . . AOE 75 | . 75 . . . Terrain Rammed . | . . . . . Walls Destroyed . | . . . . . Machines Disabled . | . . . . . Actions | -11 -10 -9 -9 -8 --------- Run | Yrd Mat Mat Min Mat Total 1996 | 67 821 744 43 321 Wait 157 | . 58 92 . 7 Move 1592 | 59 679 549 41 264 Hop . | . . . . . Pick Up 6 | 1 2 1 . 2 Fast Attach 29 | 6 4 10 . 9 Attach 5 | . 1 . . 4 Detach 4 | . . 2 . 2 Swap 15 | 1 7 5 1 1 Drop 8 | . 4 4 . . Fire 153 | . 58 78 . 17 Melee 6 | . 6 . . . Ram 9 | . . . . 9 Kick 12 | . 2 3 1 6 Crush . | . . . . . Escape Stasis . | . . . . . Rewire . | . . . . . Trap . | . . . . . Miscellaneous . | . . . . . Route ------- -11/Scrapyard -10/Materials (discovered 2 exits: *Mat / [*Min]) -9/Materials -9/Mines -8/Materials (discovered 1 exit: [*Sto]) History --------- Turn | Location | Event 10 | -11/Scrapyard | Discovered new exit (range 15) 84 | -11/Scrapyard | Entered Materials 305 | -10/Materials | Build established: Mutant 462 | -10/Materials | Discovered new exit (range 16) 556 | -10/Materials | Discovered new exit (range 13) 961 | -10/Materials | Core integrity fell below 50% 985 | -10/Materials | Lost 3 parts (1p1n1w) 1142 | -10/Materials | Entered another Materials area 1142 | -9/Materials | Evolved 2 slots: Utility x2 1146 | -9/Materials | Lost 3 parts (1p1u1w) 1757 | -9/Materials | Build established: Scavenger-Mutant 1952 | -9/Materials | Core integrity fell below 50% 1989 | -9/Materials | Lost 4 parts (1n1u2w) 2081 | -9/Materials | Discovered new exit (range 8) 2090 | -9/Materials | Entered Mines 2129 | -9/Mines | Discovered new exit (range 7) 2130 | -9/Mines | Met a Derelict testing a Signal Generator 2142 | -9/Mines | Entered Materials 2142 | -8/Materials | Accompanied by 1 ally 2142 | -8/Materials | Evolved 2 slots: Propulsion x1, Utility x1 2142 | -8/Materials | Discovered new exit (range 5) 2388 | -8/Materials | Build established: Mutant 2400 | -8/Materials | Core integrity fell below 50% 2449 | -8/Materials | Lost 6 parts (2p4n) 2543 | -8/Materials | Core integrity fell below 20% 2561 | -8/Materials | Released all parts (1) 2563 | -8/Materials | Destroyed by H-61 Shepherd with Heavy Assault Cannon Last Messages --------------- Penetrated by Slug. Knocked back. Penetrated by Slug. Targeting Computer destroyed. Knocked back. Lgt. Nuclear Core destroyed. Knocked back. Flak Gun destroyed. Component Analysis Suite destroyed. Critical hit (Blast). Acquired 8 matter. Acquired 13 matter. Aluminum Leg destroyed. Acquired Imp. EM Pulse Cannon. R-06 Scavenger collects Hpw. Shotgun. Acquired Imp. EM Pulse Cannon. Visual Processing Unit destroyed. R-06 Scavenger collects Visual Processing Unit. Flak Gun destroyed. Released Signal Interpreter. Map ----- +----------------------------------------------------+ | ????????????????????????????????????? | | ????????????????????????????????????? | | ????????????????????????????????????? | | ????????????????????????????????????? | | ????????????????????????????????????? | | ????????????????????????????????????? | | ????????????????????????????????????? | | ????????????????????????????????????? | | ????????????????????????????????????? | | ????????????????????????????????????? | | ????????????????????????????????????? | | ???????????????????# ?????##????????? | | ???????????????????# ## #####???? | | ???????????????????+ %% ????? | | ???????????????????# #### ##????? | | ???????????????????# ???????# ####??? | | ????????????????????????????# #??? | | ????????????????????????????# #??? | | ????????????????????????????# #??? | | ????????????????????????####;H #??? | | ????????????????????????#!! #??? | | ????????????????????????#! #??? | | ????????????????????????# #??? | | ????????????????????????#% #??? | | ????????????????????????#%] % #??? | | ????????????????????????#@]%x #??? | | ????????????????????????#####% #??? | | ????????????????????????????# #??? | | ????????????????????????????# #??? | | ????????????????????????????# #??? | | ????????????????????????????# #??? | | ????????????????????????????# #??? | | ????????????????????????????# #??? | | ???????????????????????###### #??? | | ?????????????????#?????# #??? | | ????????????????? / ??# #??? | | ??????????????????# # #??? | | ??????????????????# + #??? | | ??????????????????# # #??? | | ??????????????????# ??# %#??? | | ??????????????????#????# %#??? | | ???????????????????????### ###%#??? | | ?????????????????????????# ??#%#??? | | ?????????????????????????# ??#%#??? | | ?????????????????????????# ??#%#??? | | ?????????????????????????# ???#%#??? | | ????????????????????????? ???#%#??? | | ????????????????????????# ????#%#??? | | ????????????????????????+ ?????#%#??? | | ???????????????????????????????# #??? | +----------------------------------------------------+ Best States ------------- Heat Dissipation 31 Energy Generation 14 Energy Capacity 265 Matter Stores 300 Matter Capacity 300 Sight Range 18 Robot Scan Range 14 Terrain Scan Range 14 Terrain Scan Density 10 Weapon Shielding 33 Evasion (%) 55 Targeting Accuracy 5 Item Schematics ----------------- None Robot Schematics ------------------ None Fabricated ------------ Nothing Alien Tech Used ----------------- None Achievements -------------- More Dakka Please Challenges ------------ None Game ------ Seed DisruptionGodMapper Manual? 0 Play Time 00:29:18 Cumulative 6.4 hours Start 2025.01.13 @ 22:54:45 End 2025.01.13 @ 23:25:33 Sessions 1 Manual Loads 0 Difficulty Rogue Special Mode None Game No. 11 Rogue 8 Adventurer 3 Explorer 0 Win Type - Total 0 Types 0/0/0/0/0/0/0/0/0 Lore% 4 Gallery% 11 Achievement% 13 Wizard Run 0 Options --------- Layout 0 ASCII 1 Keyboard 1 Movement Vi Keybinds 0 Fullscreen 2 Font 24/Smallcaps Map View 76x50 Zoom Use 0% Tactical HUD 0 Map Filters NONE Filters NONE Steam 1 RUN: 6881f9af-5449-4906-9b15-a3ebc29599cb